Cogmind - Beta 11 @@@ ROGUE MODE // 2022.03.23 @ 14:49:44 Player: Laraso Result: Self-destructed Performance ------------- Evolutions (2) 1000 Regions Visited (6) 1200 Robots Destroyed (59) 295 Value Destroyed (1794) 1794 Prototype IDs (1) 20 Alien Tech Used (0) 0 Bonus (180) 180 TOTAL SCORE: 4489 Bonus ------- High Alert Combat Kills 180 Cogmind --------- Core Integrity 179/550 Matter 285/300 Energy 105/140 System Corruption 0% Temperature Warm (100) Movement Hovering (120) Ox1 Location -8/Storage Parts ------- > --- POWER (1) -------- Light Deuterium Engine > --- PROPULSION (2) --- Gravmag System > --- UTILITY (4) ------ Small Storage Unit Improved Targeting Computer Improved Targeting Computer > --- WEAPON (4) ------- Lightning Gun Lightning Gun > --- INVENTORY (8) ---- Improved Heat Sink Medium Matter Pod (100) ECM Suite Improved Utility Shielding Lightning Gun Lightning Gun Peak State ------------ > --- POWER ------------ Light Deuterium Engine > --- PROPULSION ------- Gravmag System Gravmag System > --- UTILITY ---------- Small Storage Unit Improved Targeting Computer Improved Targeting Computer Improved Utility Shielding > --- WEAPON ----------- Lightning Gun Lightning Gun > --- INVENTORY -------- Gravmag System Gravmag System Improved Heat Sink Medium Matter Pod ECM Suite Lightning Gun Lightning Gun [Rating: 29] Favorites ----------- Power Ion Engine Engine Ion Engine Propulsion Light Treads Treads Light Treads Hover Unit Gravmag System Utility Improved Targeting Computer Device Seismic Detector Storage Small Storage Unit Processor Improved Targeting Computer Protection Improved Utility Shielding Weapon Grenade Launcher Energy Gun EM Pulse Gun Energy Cannon Light EM Pulse Cannon Ballistic Gun Heavy Assault Rifle Ballistic Cannon Light Cannon Launcher Grenade Launcher Build | -11 -10 -10 -9 -9 -8 -8 ------- Run | Scr Mat Min Mat Min Mat Sto Slots Evolved 4 | . . . 2 . 2 . Power . | . . . . . . . Propulsion . | . . . . . . . Utility 2 | . . . . . 2 . Weapon 2 | . . . 2 . . . Parts Attached 36 | 6 3 . 5 . 21 1 Power 5 | 2 . . 1 . 2 . Engine 5 | 2 . . 1 . 2 . Core . | . . . . . . . Reactor . | . . . . . . . Propulsion 8 | 2 . . . . 6 . Treads 4 | 2 . . . . 2 . Leg . | . . . . . . . Wheel . | . . . . . . . Hover 4 | . . . . . 4 . Flight . | . . . . . . . Utility 10 | 1 1 . 1 . 6 1 Device 4 | . 1 . . . 2 1 Storage 1 | 1 . . . . . . Processor 2 | . . . 1 . 1 . Hackware . | . . . . . . . Protection 3 | . . . . . 3 . Artifact . | . . . . . . . Weapon 13 | 1 2 . 3 . 7 . Energy Gun 5 | 1 1 . . . 3 . Energy Cannon 2 | . . . 1 . 1 . Ballistic Gun 1 | . . . . . 1 . Ballistic Cannon 2 | . . . 1 . 1 . Launcher 3 | . 1 . 1 . 1 . Special Weapon . | . . . . . . . Impact Weapon . | . . . . . . . Slashing Weapon . | . . . . . . . Piercing Weapon . | . . . . . . . Special Melee Weapon . | . . . . . . . Unidentified Prototypes 1 | . . . . . 1 . Parts Lost 15 | . . . 1 . 13 1 Power 1 | . . . . . 1 . Propulsion 5 | . . . . . 4 1 Utility 2 | . . . 1 . 1 . Weapon 7 | . . . . . 7 . Highest Loss Streak 8 | . . . 1 . 8 1 To Critical Strikes 1 | . . . . . 1 . Average Slot Usage (%) 90 | . 96 100 98 100 85 72 Engine 9 | . 14 14 11 11 8 9 Treads 15 | . 28 28 22 22 9 . Hover 3 | . . . . . 5 16 Device 4 | . 11 14 6 . 1 1 Storage 10 | . 14 14 11 11 9 9 Processor 10 | . . . 3 11 17 18 Protection 2 | . . . . . 5 . Energy Gun 10 | . 14 14 11 11 7 18 Energy Cannon 5 | . . . 8 11 5 . Ballistic Gun 2 | . . . . . 4 . Ballistic Cannon 2 | . . . 1 . 4 . Launcher 11 | . 12 14 22 22 5 . Naked Turns . | . . . . . . . Heaviest Build 25 | 12 16 16 25 24 25 18 Greatest Support 40 | 40 40 40 40 40 40 18 Greatest Overweight (x) 6 | . . . . . 6 . Average Overweight (x) . | . . . . . . . Largest Inventory Capacity 8 | 8 8 8 8 8 8 8 Average Capacity 7 | 7 8 8 8 8 8 8 Most Carried 8 | 1 4 4 8 8 8 6 Average Carried 5 | . 1 4 5 8 6 5 Final Capacity 8 | 8 8 8 8 8 8 8 Final Carried 8 | 1 4 4 8 8 6 6 Class Distribution -------------------- 81% | Mutant 10% | Gunner 8% | Bomber Dominant Class ---------------- Mutant | -10/Materials Mutant | -10/Mines Mutant | -9/Materials Mutant | -9/Mines Mutant | -8/Materials Mutant | -8/Storage Resources | -11 -10 -10 -9 -9 -8 -8 ----------- Run | Scr Mat Min Mat Min Mat Sto Matter Collected 964 | 171 17 . 203 27 546 . Remotely . | . . . . . . . Salvage Created 1410 | . 17 . 430 85 878 . Parts 107 | . 6 . 37 3 61 . Haulers Intercepted 2 | . . . 1 . 1 . Recyclers Shooed . | . . . . . . . Parts Field Recycled . | . . . . . . . Retrieved Matter . | . . . . . . . Parts Self-Destructed . | . . . . . . . Prevented . | . . . . . . . Kills | -11 -10 -10 -9 -9 -8 -8 ------- Run | Scr Mat Min Mat Min Mat Sto Combat Hostiles Destroyed 42 | . 3 . 15 3 21 . Guns 2 | . . . . . 2 . Cannons 9 | . . . 4 1 4 . AOE 30 | . 3 . 11 2 14 . Classes Destroyed 11 | . 1 . 6 . 4 . Worker 4 | . . . 1 . 3 . Builder 3 | . . . 1 . 2 . Tunneler 1 | . . . . . 1 . Hauler 2 | . . . 1 . 1 . Operator 1 | . . . . . 1 . Watcher 6 | . . . 3 . 3 . Swarmer 10 | . 3 . 7 . . . Grunt 23 | . . . 7 3 13 . Brawler 1 | . . . . . 1 . Duelist 3 | . . . . . 3 . Sentry 5 | . . . 1 . 4 . Best Kill Streak 14 | . 3 . 12 3 14 . Combat Bots Only 9 | . 3 . 8 3 9 . Max Kills in Single Turn 6 | . 3 . 6 2 6 . Gunslinging . | . . . . . . . Exploded 4 | . 3 . 4 2 3 . Melee . | . . . . . . . Uniques/NPCs Destroyed . | . . . . . . . Combat | -11 -10 -10 -9 -9 -8 -8 -------- Run | Scr Mat Min Mat Min Mat Sto Damage Taken 1627 | . 10 34 296 24 1120 143 Core 419 | . . . 48 . 341 30 Absorbed by Shields . | . . . . . . . Redirected to Shielding 9 | . . . . . 9 . Core Remaining (%) 96 | 100 . 100 . 88 . . Volleys Fired 60 | . 1 . 18 3 33 5 Largest 4 | . 1 . 4 2 4 2 Hottest 183 | . 30 . 156 96 183 110 Shots Fired 134 | . 1 . 38 6 79 10 Gun 53 | . . . 12 2 29 10 Cannon 51 | . . . 12 2 37 . Launcher 30 | . 1 . 14 2 13 . Special . | . . . . . . . Kinetic 20 | . . . . . 20 . Thermal 25 | . . . . . 25 . Explosive 30 | . 1 . 14 2 13 . Electromagnetic 59 | . . . 24 4 21 10 Robot Hit Streak 12 | . 1 . 5 6 12 4 Robot Miss Streak 3 | . . . 3 1 3 3 Penetration Max . | . . . . . . . Secondary Targets . | . . . . . . . Shots Hit Robots 86 | . 1 . 20 3 56 6 Core Hits 99 | . 3 . 36 4 53 3 Critical Kills . | . . . . . . . Critical Parts Destroyed . | . . . . . . . Critical Strikes 1 | . . . . . 1 . Corrupt 1 | . . . . . 1 . Melee Attacks . | . . . . . . . Impact . | . . . . . . . Slashing . | . . . . . . . Piercing . | . . . . . . . Sneak Attacks . | . . . . . . . Combat Hostiles . | . . . . . . . Follow-up Attacks . | . . . . . . . Damage Inflicted 5424 | . 124 3 1215 208 3750 124 Guns 569 | . . . 108 . 337 124 Cannons 763 | . . . 213 45 505 . Explosions 4086 | . 124 . 891 163 2908 . Melee . | . . . . . . . Ramming 6 | . . 3 3 . . . Kinetic 254 | . . . . . 254 . Thermal 1597 | . . . 105 . 1492 . Explosive 2779 | . 124 . 786 163 1706 . Electromagnetic 788 | . . . 321 45 298 124 Impact . | . . . . . . . Slashing . | . . . . . . . Piercing . | . . . . . . . Highest Corruption 1 | . 1 1 . . . . Average Corruption 1 | . 1 1 . . . . Corruption Purged . | . . . . . . . Corruption Blocked . | . . . . . . . Overload Shots . | . . . . . . . Overflow Damage 245 | . . . 11 . 234 . Projectiles . | . . . . . . . Explosions 245 | . . . 11 . 234 . Melee . | . . . . . . . Knockbacks 1 | . . . . . 1 . Impact . | . . . . . . . Kinetic 1 | . . . . . 1 . Secondary . | . . . . . . . Self-Inflicted Damage 311 | . . . 80 . 231 . Shots 6 | . . . 2 . 4 . Rammed 2 | . . 1 1 . . . Targets Rammed 2 | . . 1 1 . . . Kicked . | . . . . . . . Crushed . | . . . . . . . Highest Temperature 285 | . . . 285 70 256 100 Average Temperature 81 | . . . 96 35 85 34 Received Heat Transfer 567 | . . . 78 12 396 81 Siege Activations . | . . . . . . . Robots Corrupted 1 | . . . . . 1 . Combat Hostiles 1 | . . . . . 1 . Parts Fried 3 | . . . 1 . 2 . Impact Corruptions . | . . . . . . . Robots Melted . | . . . . . . . Combat Hostiles . | . . . . . . . Parts Melted 1 | . . . . . 1 . Heat Transferred 1529 | . . . 150 . 1379 . Parts Sabotaged . | . . . . . . . Parts Stolen . | . . . . . . . Parts Stripped . | . . . . . . . Power Chain Reactions 3 | . . . 2 . 1 . Missiles Intercepted . | . . . . . . . Alert | -11 -10 -10 -9 -9 -8 -8 ------- Run | Scr Mat Min Mat Min Mat Sto Peak Influence 678 | . 92 35 462 223 678 314 Initial 254 | . . 35 13 114 86 254 Average 332 | . 55 35 232 214 520 289 Maximum Alert Level 2 | . . . 2 1 2 1 Low Security (%) 34 | 100 100 100 31 4 10 . Level 1 19 | . . . 55 95 . 100 Level 2 46 | . . . 13 . 88 . Level 3 . | . . . . . . . Level 4 . | . . . . . . . Level 5 . | . . . . . . . High Security . | . . . . . . . Max Security . | . . . . . . . Squads Dispatched 10 | . 2 . 3 . 3 2 Investigation 2 | . . . . . 1 1 Extermination . | . . . . . . . Reinforcement 7 | . 2 . 3 . 1 1 Assault 1 | . . . . . 1 . Garrison . | . . . . . . . Intercept . | . . . . . . . Searches Triggered . | . . . . . . . Construction Impeded . | . . . . . . . Haulers Reinforced . | . . . . . . . Active Scanning Responses . | . . . . . . . Cargo Convoy Interrupts . | . . . . . . . Stealth | -11 -10 -10 -9 -9 -8 -8 --------- Run | Scr Mat Min Mat Min Mat Sto Distress Signals 6 | . 2 . 1 . 3 . Communications Jammed . | . . . . . . . Distress Signals . | . . . . . . . Times Spotted 66 | . 3 3 20 3 29 8 Peak Tracking Total 9 | . 3 3 9 3 7 9 Tactical Retreats 3 | . . . 1 . 2 . Traps | -11 -10 -10 -9 -9 -8 -8 ------- Run | Scr Mat Min Mat Min Mat Sto Traps Triggered 3 | . 2 . . . 1 . Indirectly . | . . . . . . . Trap Hack Attempts . | . . . . . . . Triggered . | . . . . . . . Disarmed 3 | . . . 3 . . . Reprogrammed . | . . . . . . . Reused . | . . . . . . . Traps Extracted . | . . . . . . . Installed . | . . . . . . . Triggered . | . . . . . . . Machines | -11 -10 -10 -9 -9 -8 -8 ---------- Run | Scr Mat Min Mat Min Mat Sto Machines Disabled 14 | . . . 2 . 12 . Max in Single Turn 7 | . . . 2 . 7 . Machines Sabotaged . | . . . . . . . Garrisons Compromised . | . . . . . . . Overloaded Fab Kills . | . . . . . . . Hacking | -11 -10 -10 -9 -9 -8 -8 --------- Run | Scr Mat Min Mat Min Mat Sto Machines Accessed 6 | . 2 . 2 . 1 1 Terminals 5 | . 1 . 2 . 1 1 Fabricators . | . . . . . . . Repair Stations . | . . . . . . . Recycling Units 1 | . 1 . . . . . Scanalyzers . | . . . . . . . Garrison Access . | . . . . . . . Total Hacks 21 | . 4 . 8 . 4 5 Successful 13 | . 4 . 8 . 1 . Failed 8 | . . . . . 3 5 Catastrophic 1 | . . . . . . 1 Database Lockouts . | . . . . . . . Manual . | . . . . . . . Terminals 19 | . 2 . 8 . 4 5 Fabricators . | . . . . . . . Repair Stations . | . . . . . . . Recycling Units 2 | . 2 . . . . . Scanalyzers . | . . . . . . . Garrison Access . | . . . . . . . Terminal Hacks 11 | . 2 . 8 . 1 . Record 3 | . 1 . 2 . . . Unreport Threat 1 | . . . 1 . . . Locate Traps 1 | . . . 1 . . . Disarm Traps 2 | . . . 2 . . . Hauler Manifests 1 | . . . . . 1 . Zone Layout 3 | . 1 . 2 . . . Fabricator Hacks . | . . . . . . . Repair Station Hacks . | . . . . . . . Recycling Unit Hacks 2 | . 2 . . . . . Report Inventory 1 | . 1 . . . . . Retrieve Components 1 | . 1 . . . . . Scanalyzer . | . . . . . . . Garrison Access Hacks . | . . . . . . . Unauthorized Hacks . | . . . . . . . Terminals . | . . . . . . . Fabricators . | . . . . . . . Repair Stations . | . . . . . . . Recycling Units . | . . . . . . . Scanalyzers . | . . . . . . . Garrison Access . | . . . . . . . Data Cores Recovered . | . . . . . . . Used . | . . . . . . . Hacking Detections 5 | . 2 . 1 . 1 1 Full Trace Events 1 | . . . . . . 1 Feedback Events . | . . . . . . . Feedback Blocked . | . . . . . . . Robot Schematics Acquired . | . . . . . . . Robots Built . | . . . . . . . Authchips . | . . . . . . . Time . | . . . . . . . Total Robot Build Rating . | . . . . . . . Part Schematics Acquired . | . . . . . . . Parts Built . | . . . . . . . Authchips . | . . . . . . . Time . | . . . . . . . Total Part Build Rating . | . . . . . . . Parts Repaired . | . . . . . . . Time . | . . . . . . . Parts Recycled . | . . . . . . . Recycled Matter . | . . . . . . . Retrieved Matter . | . . . . . . . Retrieved Components 2 | . 2 . . . . . Parts Scanalyzed . | . . . . . . . Part Schematics Acquired . | . . . . . . . Parts Damaged . | . . . . . . . Bothacking | -11 -10 -10 -9 -9 -8 -8 ------------ Run | Scr Mat Min Mat Min Mat Sto Used RIF Installer . | . . . . . . . Robots Hacked . | . . . . . . . Non-combat . | . . . . . . . Combat . | . . . . . . . Robot Hacks Applied . | . . . . . . . Relay Couplers Released . | . . . . . . . Fabnet Peak Effective % . | . . . . . . . Robots Rewired . | . . . . . . . Allies Hacked . | . . . . . . . Hacks Repelled . | . . . . . . . Allies | -11 -10 -10 -9 -9 -8 -8 -------- Run | Scr Mat Min Mat Min Mat Sto Total Allies . | . . . . . . . Largest Group . | . . . . . . . Highest-Rated Group . | . . . . . . . Highest-Rated Ally . | . . . . . . . Total Orders . | . . . . . . . Ally Attacks . | . . . . . . . Total Damage . | . . . . . . . Kills . | . . . . . . . Allies Corrupted . | . . . . . . . Allies Melted . | . . . . . . . Intel | -11 -10 -10 -9 -9 -8 -8 ------- Run | Scr Mat Min Mat Min Mat Sto Robot Analysis Total . | . . . . . . . Derelict Logs Recovered . | . . . . . . . Drone Launches . | . . . . . . . Drone Recoveries . | . . . . . . . Exploration | -11 -10 -10 -9 -9 -8 -8 ------------- Run | Scr Mat Min Mat Min Mat Sto Turns Passed 2069 | 89 330 23 525 41 1000 61 Spaces Moved 1217 | 57 171 14 275 21 613 66 Core 26 | 9 . . . . 17 . Treads 842 | 48 171 14 275 21 313 . Legs . | . . . . . . . Wheels . | . . . . . . . Hover 349 | . . . . . 283 66 Flight . | . . . . . . . Fastest Speed 50 | 50 160 160 160 160 56 56 Average Speed 137 | 142 160 160 160 160 127 56 Slowest Speed 350 | 160 160 160 160 160 350 56 Overloaded Moves . | . . . . . . . Propulsion Burnouts . | . . . . . . . Robots Hopped . | . . . . . . . Cave-ins Triggered . | . . . . . . . Exploration Rate (%) 20 | 4 26 11 32 9 40 18 Regions Visited 6 Branch Regions 3 Pre-discovered Areas . | . . . . . . . Known Exits Taken . | . . . . . . . Unknown Exits Taken 6 | 1 1 1 1 1 1 . Scrap Searched . | . . . . . . . Spaces Dug . | . . . . . . . Terrain Destroyed 212 | . 5 . 33 15 159 . Melee . | . . . . . . . Projectile . | . . . . . . . AOE 212 | . 5 . 33 15 159 . Terrain Rammed . | . . . . . . . Walls Destroyed . | . . . . . . . Machines Disabled . | . . . . . . . Actions | -11 -10 -10 -9 -9 -8 -8 --------- Run | Scr Mat Min Mat Min Mat Sto Total 1495 | 62 226 14 325 23 765 80 Wait 132 | . 47 . 15 . 63 7 Move 1212 | 56 170 14 274 20 612 66 Hop . | . . . . . . . Pick Up 31 | . 5 . 9 . 17 . Fast Attach 14 | 5 1 . . . 8 . Attach 22 | . 2 . 5 . 14 1 Detach 4 | . . . 1 . 2 1 Swap 1 | 1 . . . . . . Drop 17 | . . . 2 . 15 . Fire 60 | . 1 . 18 3 33 5 Melee . | . . . . . . . Ram . | . . . . . . . Kick . | . . . . . . . Crush 1 | . . . 1 . . . Escape Stasis . | . . . . . . . Rewire 1 | . . . . . 1 . Trap . | . . . . . . . Miscellaneous . | . . . . . . . Route ------- -11/Scrapyard -10/Materials -10/Mines -9/Materials -9/Mines -8/Materials (discovered 2 exits: [*Fac] / *Sto) -8/Storage History --------- Turn | Location | Event 7 | -11/Scrapyard | Discovered new exit (range 15) 90 | -11/Scrapyard | Entered Materials 310 | -10/Materials | Build established: Mutant 327 | -10/Materials | Discovered new exit (range 16) 420 | -10/Materials | Entered Mines 428 | -10/Mines | Discovered new exit (range 9) 443 | -10/Mines | Entered Materials 443 | -9/Materials | Evolved 2 slots: Weapon x2 639 | -9/Materials | Destroyed 8 combat bots 944 | -9/Materials | Discovered new exit (range 16) 968 | -9/Materials | Entered Mines 970 | -9/Mines | Discovered new exit (range 11) 1009 | -9/Mines | Entered Materials 1009 | -8/Materials | Evolved 2 slots: Utility x2 1124 | -8/Materials | Core integrity fell below 50% 1148 | -8/Materials | Destroyed 9 combat bots 1157 | -8/Materials | Lost 8 parts (1p2n1u4w) 1409 | -8/Materials | First assault squad dispatched 2007 | -8/Materials | Discovered new exit (range 5) 2009 | -8/Materials | Discovered new exit (range 15) 2009 | -8/Materials | Entered Storage 2070 | -8/Storage | Self-destructed Last Messages --------------- 01993_ K-01 Serf collects debris. 01999_ Acquired 10 matter. 02000_ Penetrated by Slug. 02000_ Gravmag System destroyed. 02007_ EXIT=FOUND LOCATION=UNKNOWN GOAL=ESCAPE 02010_ O-16 Technician: "IFF HANDSHAKE FAILED. SECURING TERMINAL." 02010_ O-16 Technician uses terminal to summon reinforcements. 02010_ ALERT: Hostiles spotted, dispatching reinforcements to Terminal S012. 02010_ O-16 Technician locks terminal. 02011_ Door malfunctions. 02016_ Connecting with Door Terminal... 02016_ Current location identified: Storage 02016_ ALERT: Suspicious activity at Terminal S003. Dispatching Investigation squad. 02044_ Critical hit (Burn: +37). 02065_ Gravmag System destroyed. 02067_ G-47 Trooper misfires. Map ----- +----------------------------------------------------+ | ??????# ###????????????????????????? | | ??????# / "????????????????????????? | | ??????+ #T#????????????????????????? | | ??????# ###????????????????????????? | | ??????# ""#????????????????????????? | | ??????# T"#????????????????????????? | | ??????# ""#????????????????????????? | | ??????# ###????????????????????????? | | ??????# #??????????????????????????? | | ??????# #??????????????????????????? | | ??????# ######?????????????????????? | | ??????# # ]]#?????????????????????? | | ??????# + ]]#??????#####??????????? | | ??????# # ]]#??????#"""#??????????? | | ??????# ######?????##"T"#####??????? | | ??????# #??????????# #??????? | | ?????## ##?????????# """ #??????? | | ?????# ########### """ """????? | | ?????# # """ R"#???? | | ?????# / """????? | | ?????# # """ ##?????? | | ?????# #########+# """ #??????? | | ????####+#### g Y # """ #??????? | | ???# #gY """" # #?????? | | ???#""" # g""??" ###########?????? | | ???#""" #@""???" #???????????????? | | ???#""" # "????" #???????????????? | | ???# #g"???? #???????????????? | | ???#""" # "???? #???????????????? | | ???#""" # ??? #???????????????? | | ???#""" # ??? #???????????????? | | ???? ###??#/###???????????????? | | ?????########???? ??????????????????? | | ????????????????? ??????????????????? | | ???????????????? ??????????????????? | | ???????????????? ??????????????????? | | ????????????????# ???????????????????? | | ????????????????# ???????????????????? | | ????????????????# ???????????????????? | | ????????????????#????????????????????? | | ?????????????????????????????????????? | | ?????????????????????????????????????? | | ?????????????????????????????????????? | | ?????????????????????????????????????? | | ?????????????????????????????????????? | | ?????????????????????????????????????? | | ?????????????????????????????????????? | | ?????????????????????????????????????? | | ?????????????????????????????????????? | | ?????????????????????????????????????? | +----------------------------------------------------+ Best States ------------- Heat Dissipation 45 Energy Generation 14 Energy Capacity 265 Matter Stores 300 Matter Capacity 300 Sight Range 16 Terrain Scan Density 10 Propulsion Shielding 66 Utility Shielding 66 Evasion (%) 53 Targeting Accuracy 12 Recoil Reduction 2 Item Schematics ----------------- None Robot Schematics ------------------ None Fabricated ------------ Nothing Alien Tech Used ----------------- None Achievements -------------- Everything Is Under Control Remodeling Shopping List Significant Disruption Challenges ------------ None Game ------ Seed ReinforcedFrostBroadsword Manual? 0 Play Time 00:16:51 Cumulative 13.5 hours Start 2022.03.23 @ 14:33:42 End 2022.03.23 @ 14:49:44 Sessions 1 Manual Loads 0 Difficulty Rogue Special Mode None Game No. 25 Rogue 24 Adventurer 1 Explorer 0 Win Type - Total 0 Types 0/0/0/0/0/0/0/0/0 Lore% 11 Gallery% 20 Achievement% 14 Wizard Run 0 Options --------- ASCII 0 Keyboard 1 Movement Numpad Keybinds 0 Fullscreen 1 Font 24/Smallcaps Map View 76x50 Tactical HUD 1 Map Filters NONE Filters NONE Steam 1 RUN: 2329de83-85da-4b16-96d2-fc758319cd56